Cogmind - Beta 15 @@@ ROGUE MODE // 2025.07.24 @ 21:17:36 Player: Cracklepappy Result: Self-destructed Performance ------------- Evolutions (7) 3500 Regions Visited (28) 5600 Robots Destroyed (506) 2530 Value Destroyed (23465) 23465 Prototype IDs (40) 800 Alien Tech Used (0) 0 Bonus (10112) 10112 TOTAL SCORE: 46007 Bonus ------- High Alert Combat Kills 6883 Follower Combat Kills 1658 Entered Garrisons 1000 Entered DSFs 500 Acquired ECA 300 Met Warlord at Base 500 MAIN.C Attacked Warlord 500 Friendly Fire -1229 Cogmind --------- Core Integrity 1235/1300 Matter 31/300 Energy 253/260 System Corruption 4% Temperature Cool (0) Movement Rolling (131) Ox3 Location -3/Research Parts ------- > --- POWER (2) -------- Light Particle Reactor Light Particle Reactor > --- PROPULSION (3) --- Wheel Wheel Compact Wheel > --- UTILITY (8) ------ Advanced Cooling System Experimental Coolant Injector High-capacity Storage Unit Makeshift Salvage Targeting Computer Core Analyzer Advanced Recoil Stabilizer Thermal Barrier Advanced Hardlight Generator > --- WEAPON (8) ------- Heavy Phase Cannon Coil Gun Coil Gun KE Penetrator Heavy Mass Driver Linear Accelerator > --- INVENTORY (20) --- Reinforced Antimatter Reactor Vortex Chain Reactor Matter Compressor (0) Advanced Terrain Scan Processor Advanced Recoil Stabilizer Improved Kinecellerator Improved Weapon Cycler System Mapper Improved Component Analysis Suite Dimensional Node Initializer Vortex Driver (30) Vortex Driver (30) Plasma Cutter CPS Tube (2) CPS Tube (2) CPS Tube (2) Longsword +1 Peak State ------------ > --- POWER ------------ Light Particle Reactor Light Particle Reactor > --- PROPULSION ------- Wheel Wheel Compact Wheel > --- UTILITY ---------- Advanced Cooling System Experimental Coolant Injector High-capacity Storage Unit Makeshift Salvage Targeting Computer Core Analyzer Advanced Recoil Stabilizer Thermal Barrier Advanced Hardlight Generator > --- WEAPON ----------- Heavy Phase Cannon Coil Gun Coil Gun KE Penetrator KE Penetrator Heavy Mass Driver Linear Accelerator > --- INVENTORY -------- Reinforced Antimatter Reactor Vortex Chain Reactor Matter Compressor Advanced Terrain Scan Processor Advanced Recoil Stabilizer Improved Kinecellerator Improved Weapon Cycler System Mapper Improved Component Analysis Suite Dimensional Node Initializer Vortex Driver Vortex Driver Plasma Cutter CPS Tube CPS Tube CPS Tube Longsword +1 [Rating: 126] Favorites ----------- Power Reinforced Antimatter Reactor Engine Heavy Ion Engine Power Core Nuclear Core Reactor Reinforced Antimatter Reactor Propulsion Wheel Wheel Wheel Utility Core Analyzer Device Improved Cooling System Storage High-capacity Storage Unit Processor Core Analyzer Hackware System Shield Protection Light Armor Plating Weapon Coil Gun Energy Gun Wave Gun Energy Cannon Plasma Cannon Ballistic Gun Coil Gun Ballistic Cannon Light Cannon Launcher Grenade Launcher Special Weapon Plasma Cutter Impact Weapon Heavy Hammer Slashing Weapon Longsword +1 Special Melee Weapon Improved Datajack Build | -11 -10 -10 -9 -9 -9 -8 -8 -8 -8 -8 -7 -7 -7 -7 -7 -7 -7 -7 -7 -7 -5 -5 -5 -5 -4 -4 -4 -3 ------- Run | Yrd Mat Min Mat Min Exi Min Mat Gar Mat Gar Fac Was Fac Gar Fac Gar Sto Gar Rec Scr Fac Upp Upp War Pro Fac DSF Res Slots Evolved 14 | . . . 2 . . . 2 . . . 2 . . . . . . . . . 4 . . . . 2 . 2 Power 1 | . . . . . . . . . . . . . . . . . . . . . . . . . . 1 . . Propulsion 1 | . . . . . . . . . . . . . . . . . . . . . . . . . . 1 . . Utility 6 | . . . . . . . 1 . . . 1 . . . . . . . . . 2 . . . . . . 2 Weapon 6 | . . . 2 . . . 1 . . . 1 . . . . . . . . . 2 . . . . . . . Parts Attached 285 | 7 15 10 16 3 1 1 1 8 28 17 16 9 4 9 1 20 17 22 12 6 8 4 7 16 3 4 10 10 Power 26 | 1 1 2 2 . . 1 . . 4 2 2 2 . . . . 3 . . . 1 2 . 1 . . 2 . Engine 13 | 1 1 2 2 . . 1 . . 1 1 1 . . . . . 2 . . . . 1 . . . . . . Core 8 | . . . . . . . . . 3 1 1 . . . . . 1 . . . 1 1 . . . . . . Reactor 5 | . . . . . . . . . . . . 2 . . . . . . . . . . . 1 . . 2 . Propulsion 58 | 2 5 5 3 2 . . . 1 7 2 5 . 1 . . 5 1 5 4 . 2 . . 1 2 . . 5 Treads . | . . . . . . . . . . . . . . . . . . . . . . . . . . . . . Leg . | . . . . . . . . . . . . . . . . . . . . . . . . . . . . . Wheel 58 | 2 5 5 3 2 . . . 1 7 2 5 . 1 . . 5 1 5 4 . 2 . . 1 2 . . 5 Hover . | . . . . . . . . . . . . . . . . . . . . . . . . . . . . . Flight . | . . . . . . . . . . . . . . . . . . . . . . . . . . . . . Utility 66 | 2 4 1 3 . . . 1 2 5 4 5 5 1 1 1 5 1 1 3 2 4 1 3 4 . 1 3 3 Device 39 | 1 1 . . . . . 1 . 2 4 4 4 1 1 . 3 . 1 3 1 3 . 1 4 . . 1 3 Storage 11 | 1 1 . 2 . . . . . 1 . 1 1 . . . 1 . . . . . 1 . . . . 2 . Processor 12 | . 1 . 1 . . . . 2 1 . . . . . . 1 1 . . 1 1 . 2 . . 1 . . Hackware 2 | . . . . . . . . . 1 . . . . . 1 . . . . . . . . . . . . . Protection 2 | . 1 1 . . . . . . . . . . . . . . . . . . . . . . . . . . Artifact . | . . . . . . . . . . . . . . . . . . . . . . . . . . . . . Weapon 135 | 2 5 2 8 1 1 . . 5 12 9 4 2 2 8 . 10 12 16 5 4 1 1 4 10 1 3 5 2 Energy Gun 5 | . . . . . . . . . . 1 . . . . . . 1 . . . . 1 . . 1 . 1 . Energy Cannon 11 | . 1 . 1 . . . . . 1 2 1 . . . . . . . . . . . . 1 . 3 . 1 Ballistic Gun 98 | 2 . 1 6 1 . . . 4 10 6 2 2 2 8 . 10 11 16 5 2 1 . 4 2 . . 3 . Ballistic Cannon 12 | . 3 . 1 . . . . . . . 1 . . . . . . . . . . . . 5 . . 1 1 Launcher 1 | . . 1 . . . . . . . . . . . . . . . . . . . . . . . . . . Special Weapon 3 | . . . . . . . . 1 . . . . . . . . . . . . . . . 2 . . . . Impact Weapon 1 | . 1 . . . . . . . . . . . . . . . . . . . . . . . . . . . Slashing Weapon 2 | . . . . . 1 . . . . . . . . . . . . . . 1 . . . . . . . . Piercing Weapon . | . . . . . . . . . . . . . . . . . . . . . . . . . . . . . Special Melee Weapon 2 | . . . . . . . . . 1 . . . . . . . . . . 1 . . . . . . . . Unidentified Prototypes 11 | . . . 1 . . . . . . . 1 . 1 . . 1 2 . . . . . . 5 . . . . Parts Lost 56 | . 2 2 . . . . . 1 11 8 1 . . 1 . 4 6 9 . . 1 . 3 . 2 . . 5 Power 2 | . . . . . . . . . . . 1 . . . . . . 1 . . . . . . . . . . Propulsion 20 | . 1 . . . . . . 1 3 4 . . . . . 1 1 4 . . . . 1 . 2 . . 2 Utility 10 | . 1 . . . . . . . 1 . . . . 1 . 2 1 1 . . 1 . . . . . . 2 Weapon 24 | . . 2 . . . . . . 7 4 . . . . . 1 4 3 . . . . 2 . . . . 1 Highest Loss Streak 5 | . 1 2 . . . . . 1 5 2 1 . . 1 . 2 3 2 . . 1 . 3 . 1 . . 2 To Critical Strikes 1 | . . . . . . . . . . . . . . . . . 1 . . . . . . . . . . . Average Backups 17 | 3 11 14 15 19 19 20 19 19 19 19 19 15 15 14 15 15 19 18 19 19 19 20 19 19 18 18 18 18 Power . | . . . . 1 1 . 1 1 1 . . 1 1 1 1 1 1 . 1 1 1 . . . 1 1 1 1 Propulsion 1 | 1 3 3 3 3 4 3 3 1 2 . 2 2 2 2 2 1 1 1 2 . . 2 1 1 . . . 1 Utility 6 | . 2 4 3 3 4 5 5 7 9 11 9 7 7 6 6 5 6 6 6 6 7 7 7 8 9 9 9 7 Weapon 5 | . 4 5 6 8 8 8 8 6 5 4 4 4 4 4 5 6 9 9 8 9 4 2 2 2 3 3 3 3 Tool/Special . | . . . . . . . . . . . . . . . . . . . . . . . . . . . . . Unused Backups 87 | . 6 1 7 3 . 1 . 5 6 7 4 7 . 2 . 3 . . 5 3 8 . 1 5 . . . 13 Power 14 | . 1 . 1 . . . . 3 1 1 . 2 . . . 1 . . . 1 1 . . . . . . 2 Propulsion 8 | . . . . 2 . 1 . . . 1 . . . 2 . . . . 1 . 1 . . . . . . . Utility 36 | . 2 1 4 1 . . . 1 4 5 3 1 . . . 1 . . 1 1 3 . 1 1 . . . 6 Weapon 21 | . 2 . 2 . . . . 1 1 . 1 4 . . . 1 . . 3 1 3 . . 1 . . . 1 Tool/Special 8 | . 1 . . . . . . . . . . . . . . . . . . . . . . 3 . . . 4 Average Slot Usage (%) 96 | . 99 100 99 100 100 100 90 99 98 95 98 100 93 92 92 96 99 99 97 81 99 100 98 99 88 84 83 93 Engine 3 | . 14 14 11 11 11 11 9 9 4 5 3 . . . . . 1 . . . . 3 5 1 . . . . Core 1 | . . . . . . . . . 4 3 3 . . . . . 5 2 . . . 1 . . . . . . Reactor 3 | . . . . . . . . . . . . 6 7 7 7 7 . 4 7 7 4 . . 3 5 5 6 9 Wheel 15 | . 27 28 21 22 22 22 18 17 17 14 14 15 8 7 7 11 14 14 15 15 11 11 9 11 5 10 10 12 Device 8 | . 5 . . . . . 9 . 3 8 14 15 15 15 11 10 7 6 7 4 10 11 10 8 11 12 14 22 Storage 7 | . 14 14 11 11 11 11 9 9 9 9 7 7 7 7 7 7 7 7 7 7 5 5 5 5 5 5 5 4 Processor 11 | . 5 . 6 11 11 11 9 17 14 9 7 7 7 7 7 10 15 15 15 17 16 17 17 19 17 12 10 9 Energy Cannon 1 | . 1 3 2 . . . . . . 9 7 . . . . . . . . . . . . . . 5 13 6 Ballistic Gun 36 | . 1 3 39 44 36 44 36 42 44 30 36 45 46 43 42 44 45 43 43 26 45 42 41 33 32 20 11 19 Ballistic Cannon 2 | . 23 21 . . . . . . . . . . . . . . . . . . . . . 9 5 5 5 6 Peak Build Rating 126 | 7 9 10 23 22 26 22 27 35 36 41 47 48 57 61 57 63 59 62 59 59 82 77 75 93 100 110 119 126 Average Rating 48 | 6 7 8 20 21 24 22 27 30 30 34 39 46 55 55 55 55 54 51 52 46 76 75 70 80 95 105 111 121 On Entrance 48 | . 7 8 10 22 21 22 22 27 31 33 37 47 47 57 57 56 54 55 62 29 59 77 75 71 92 100 110 113 Naked Turns . | . . . . . . . . . . . . . . . . . . . . . . . . . . . . . Heaviest Build 160 | 15 32 34 60 60 60 60 61 64 72 80 78 90 71 71 71 90 90 87 87 86 95 88 86 125 122 141 160 145 Greatest Support 44 | 26 26 20 20 20 20 20 20 26 32 32 26 20 28 28 28 28 24 28 32 32 32 20 26 26 28 44 44 44 Greatest Overweight (x) 23 | . 3 1 2 2 2 2 3 6 7 7 4 23 3 2 2 5 6 6 3 2 4 4 8 4 12 3 3 7 Average Overweight (x) 2 | . . 1 1 2 2 2 3 2 2 2 3 12 2 2 2 2 3 2 2 1 2 3 4 3 5 2 2 3 Largest Inventory Capacity 25 | 8 15 15 20 20 20 20 20 20 20 20 20 20 15 15 15 20 20 20 20 20 20 20 20 20 20 20 25 20 Average Capacity 18 | 7 12 15 16 20 20 20 20 20 20 20 20 15 15 15 15 16 20 20 20 20 19 20 20 20 20 20 20 20 Most Carried 20 | 8 15 15 20 20 20 20 19 20 20 20 20 20 15 15 15 20 20 20 20 20 20 20 20 20 20 20 20 20 Average Carried 17 | 3 11 14 15 19 19 20 19 19 19 19 19 15 15 14 14 15 19 18 19 19 19 19 19 19 19 19 19 19 Final Capacity 20 | 8 15 15 20 20 20 20 20 20 20 20 20 15 15 15 15 20 20 20 20 20 20 20 20 20 20 20 20 20 Final Carried 20 | 8 15 15 20 20 20 20 19 20 16 20 20 15 15 15 15 20 20 20 20 20 20 20 20 20 20 20 20 18 Class Distribution -------------------- 55% | Scavenger-Executioner 10% | Scavenger-Gunner 9% | Gunner 8% | Mutant 5% | Commander-Executioner 4% | Executioner Dominant Class ---------------- Mutant | -10/Materials Mutant | -10/Mines Gunner | -9/Materials Gunner | -9/Mines Commander-Gunner | -9/Exiles Commander-Gunner | -8/Mines Gunner | -8/Materials Gunner | -8/Garrison Scavenger-Gunner | -8/Materials Scavenger-Gunner | -8/Garrison Scavenger-Executioner | -7/Factory Scavenger-Executioner | -7/Waste Executioner | -7/Factory Executioner | -7/Garrison Scavenger-Executioner | -7/Factory Scavenger-Executioner | -7/Garrison Scavenger-Executioner | -7/Storage Scavenger-Executioner | -7/Garrison Scavenger-Executioner | -7/Recycling Commander-Executioner | -7/Scraptown Commander-Executioner | -5/Factory Scavenger-Executioner | -5/Upper Caves Scavenger-Executioner | -5/Upper Caves Scavenger-Executioner | -5/Warlord Scavenger-Executioner | -4/Proximity Caves Scavenger-Executioner | -4/Factory Scavenger-Executioner | -4/DSF Scavenger-Executioner | -3/Research Resources | -11 -10 -10 -9 -9 -9 -8 -8 -8 -8 -8 -7 -7 -7 -7 -7 -7 -7 -7 -7 -7 -5 -5 -5 -5 -4 -4 -4 -3 ----------- Run | Yrd Mat Min Mat Min Exi Min Mat Gar Mat Gar Fac Was Fac Gar Fac Gar Sto Gar Rec Scr Fac Upp Upp War Pro Fac DSF Res Matter Collected 22166 | 378 793 638 888 378 20 398 . 766 1911 1370 638 425 55 1186 50 2042 2078 1991 739 180 881 580 370 629 907 118 551 1206 Remotely 279 | 153 126 . . . . . . . . . . . . . . . . . . . . . . . . . . . Salvage Created 25653 | 188 672 209 1464 194 284 623 . 704 2615 1596 880 668 55 1695 . 2065 2942 2645 1209 . 1349 481 256 . 581 118 560 1600 Parts 1341 | 10 44 15 77 19 12 33 . 38 153 79 44 23 1 71 . 101 181 117 52 . 63 29 25 . 36 4 28 86 Haulers Intercepted 23 | . 2 . 3 . . . . . 6 . 2 . . . . . 6 . . . 3 . . . . 1 . . Recyclers Shooed 7 | . . . . . . 1 . . . . . . . . . . 1 . 1 . 3 . . . . . . 1 Parts Field Recycled . | . . . . . . . . . . . . . . . . . . . . . . . . . . . . . Retrieved Matter . | . . . . . . . . . . . . . . . . . . . . . . . . . . . . . Parts Self-Destructed 91 | . . . . . . . . . . . . . . . . . . . . . . 33 21 . 37 . . . Prevented . | . . . . . . . . . . . . . . . . . . . . . . . . . . . . . Kills | -11 -10 -10 -9 -9 -9 -8 -8 -8 -8 -8 -7 -7 -7 -7 -7 -7 -7 -7 -7 -7 -5 -5 -5 -5 -4 -4 -4 -3 ------- Run | Yrd Mat Min Mat Min Exi Min Mat Gar Mat Gar Fac Was Fac Gar Fac Gar Sto Gar Rec Scr Fac Upp Upp War Pro Fac DSF Res Combat Hostiles Destroyed 374 | . 16 17 23 1 . 14 . 15 36 33 9 2 1 27 . 33 34 46 6 . 14 9 6 . 7 . 8 17 Guns 321 | . 3 3 20 1 . 14 . 15 36 27 6 2 1 27 . 33 34 46 6 . 14 9 6 . 4 . 3 11 Cannons 49 | . 13 10 3 . . . . . . 6 3 . . . . . . . . . . . . . 3 . 5 6 AOE 4 | . . 4 . . . . . . . . . . . . . . . . . . . . . . . . . . Classes Destroyed 22 | 3 7 1 2 . . . . 1 2 5 . 1 . . . . . . . . . . . . . . . . Worker 30 | 2 3 . . 2 . . . . 10 . 2 . . . . . 7 . . . 3 . . . . . . 1 Builder 21 | . 3 . 2 2 . . . . 5 . . . . . . . 4 . . . 3 . . . . . . 2 Tunneler 10 | 3 . 1 . 1 . 2 . . . . 1 . . . . . . . 1 . 1 . . . . . . . Hauler 23 | . 2 . 3 . . . . . 6 . 2 . . . . . 6 . . . 3 . . . . 1 . . Recycler 25 | 1 . 1 4 1 . 1 . . 3 . 3 . . . . . 1 . 7 . 1 . . . . . . 2 Mechanic 5 | . 1 . 1 . . . . . 2 . . . . 1 . . . . . . . . . . . . . . Operator 3 | . 1 . . . . . . . 1 . 1 . . . . . . . . . . . . . . . . . Watcher 16 | . 3 . 4 . . . . . 3 1 1 . . . . 1 1 1 . . . . . . . . . 1 Swarmer 74 | . 3 6 4 . . 7 . 4 6 2 3 . . 6 . 8 . 11 . . 6 4 4 . . . . . Cutter 2 | . . . . . . . . . . 2 . . . . . . . . . . . . . . . . . . Grunt 159 | . 13 2 11 1 . 7 . 5 16 8 5 . . 13 . 9 18 26 . . 6 3 . . 4 . 3 9 Brawler 18 | . . . . . . . . . 1 6 . . . 2 . 2 2 2 2 . . . . . . . . 1 Duelist 3 | . . . 1 . . . . . . . . . . . . . 2 . . . . . . . . . . . Protector 1 | . . . . . . . . . . 1 . . . . . . . . . . . . . . . . . . Sentry 58 | . . . 7 . . . . 4 9 6 1 . . 4 . 5 11 3 4 . 1 1 . . . . 1 1 Demolisher 1 | . . . . . . . . . . 1 . . . . . . . . . . . . . . . . . . Specialist 5 | . . . . . . . . . . 4 . . . . . 1 . . . . . . . . . . . . Hunter 20 | . . . . . . . . 2 3 . . . 1 . . 6 . . . . . 1 2 . 2 . 2 1 Programmer 21 | . . . . . . . . . . 3 . . . 2 . 3 1 4 . . 2 . . . 1 . 1 4 Heavy 3 | . . . . . . . . . 1 . . . . . . . . . . . . . . . . . 1 1 Compactor 2 | . . . . . . . . . . . . 2 . . . . . . . . . . . . . . . . Assembled 9 | . . 9 . . . . . . . . . . . . . . . . . . . . . . . . . . Surgeon 1 | . . . . . . . . 1 . . . . . . . . . . . . . . . . . . . . Wasp 1 | . . . . . . . . . . . . 1 . . . . . . . . . . . . . . . . Thug 2 | . . . . . . . . . . . . . . 2 . . . . . . . . . . . . . . Martyr 2 | . . . . . . . . . . . . 2 . . . . . . . . . . . . . . . . Best Kill Streak 10 | 3 4 4 5 2 . 6 . 3 10 5 6 1 1 8 . 6 9 8 4 . 6 4 4 . 4 1 4 7 Combat Bots Only 8 | . 3 4 4 1 . 6 . 3 4 5 5 1 1 8 . 6 6 8 2 . 5 4 4 . 4 . 4 4 Max Kills in Single Turn 3 | 1 1 2 2 1 . 2 . 2 2 2 2 1 1 3 . 2 3 2 2 . 3 3 3 . 2 1 1 3 Gunslinging 2 | . . . 1 . . 1 . . 1 1 . . . 2 . 1 . 1 . . 1 . 1 . . . . . Exploded 2 | . . 2 . . . . . . . . . . . . . . . . . . . . . . . . . . Melee . | . . . . . . . . . . . . . . . . . . . . . . . . . . . . . Uniques/NPCs Destroyed . | . . . . . . . . . . . . . . . . . . . . . . . . . . . . . Combat | -11 -10 -10 -9 -9 -9 -8 -8 -8 -8 -8 -7 -7 -7 -7 -7 -7 -7 -7 -7 -7 -5 -5 -5 -5 -4 -4 -4 -3 -------- Run | Yrd Mat Min Mat Min Exi Min Mat Gar Mat Gar Fac Was Fac Gar Fac Gar Sto Gar Rec Scr Fac Upp Upp War Pro Fac DSF Res Hostile Shots Fired 1642 | . 53 49 53 7 . 35 . 50 172 117 43 . 2 101 . 144 214 204 45 . 29 31 37 . 86 . 66 104 Missed 472 | . 14 12 12 3 . 11 . 17 40 35 23 . . 35 . 28 63 52 18 . 9 11 2 . 30 . 24 33 Hits 1170 | . 39 37 41 4 . 24 . 33 132 82 20 . 2 66 . 116 151 152 27 . 20 20 35 . 56 . 42 71 Melee 13 | . . 7 . . . . . . . 1 . . . . . . 5 . . . . . . . . . . . Projectile 1157 | . 39 30 41 4 . 24 . 33 132 81 20 . 2 66 . 116 146 152 27 . 20 20 35 . 56 . 42 71 AOE 7 | . . . . . . . . . . 6 . . . . . 1 . . . . . . . . . . . . Critical Strikes 35 | . . . 1 . . 3 . . 9 1 . . . 1 . 1 1 5 . . 2 1 1 . . . 4 5 Part Disruptions 2 | . 1 . . . . . . . . . . . . . . . . . . . 1 . . . . . . . Damage Taken 15414 | . 508 566 458 54 . 375 . 442 2031 1333 247 . 50 866 . 1258 1528 2071 221 . 381 378 536 . 557 . 693 861 Core 1742 | . 49 122 86 . . 76 . 48 252 172 39 . . 70 . 108 164 250 5 . 20 80 18 . 69 . 49 65 Absorbed by Shields 1856 | . . . . . . . . 17 . 58 . . . . . 4 20 . . . . . . . 437 . 663 657 Ignored by Resistances 186 | . . . . . . . . . . . . . . . . . . . . . . . . . . . . 186 Regen/Repaired (Parts) 506 | . 83 . 33 . . . . . 218 . . 65 . 32 . . . . . . . . . 75 . . . . Core Remaining (%) 55 | 100 . 31 . . . 59 . . . 14 . . . . . . . . . 9 . . . . 81 . 95 . Volleys Fired 952 | 18 64 55 50 8 . 27 . 29 99 77 24 13 2 132 . 73 78 64 21 . 19 13 9 1 23 1 15 37 Largest 8 | 2 2 2 4 4 . 4 . 5 5 5 6 6 6 6 . 6 6 6 6 . 8 8 8 1 7 7 7 7 Hottest 540 | 40 60 90 137 92 . 92 . 120 126 274 241 170 177 180 . 178 175 170 178 . 231 272 272 47 253 311 540 401 Shots Fired 4011 | 36 126 103 200 32 . 108 . 137 487 307 141 78 12 316 . 306 424 351 125 . 144 103 70 2 118 7 89 189 Gun 3477 | 36 18 7 182 32 . 108 . 137 487 265 114 78 12 233 . 306 424 351 125 . 144 103 70 1 95 6 41 102 Cannon 445 | . 108 90 18 . . . . . . 42 27 . . . . . . . . . . . . 1 23 1 48 87 Launcher 6 | . . 6 . . . . . . . . . . . . . . . . . . . . . . . . . . Special 83 | . . . . . . . . . . . . . . 83 . . . . . . . . . . . . . . Kinetic 3716 | 36 124 89 186 32 . 108 . 137 487 251 114 78 12 233 . 306 424 351 125 . 144 100 61 2 118 6 47 145 Thermal 289 | . 2 8 14 . . . . . . 56 27 . . 83 . . . . . . . 3 9 . . 1 42 44 Explosive 6 | . . 6 . . . . . . . . . . . . . . . . . . . . . . . . . . Electromagnetic . | . . . . . . . . . . . . . . . . . . . . . . . . . . . . . Robot Hit Streak 26 | 7 14 9 13 13 . 13 . 11 8 7 5 14 6 24 . 26 11 10 6 . 9 6 5 . 5 2 10 10 Robot Miss Streak 15 | 2 4 7 2 2 . 4 . 4 6 9 3 3 2 8 . 9 7 15 4 . 4 5 9 . 12 1 4 8 Penetration Max 2 | . . . . . . . . . 1 1 1 1 . 1 . . 1 1 2 . 2 1 1 . 1 . 1 1 Secondary Targets 69 | . 1 . 6 . . 4 . 2 6 7 . . 1 10 . 6 2 17 . . 6 . 1 . . . . . Max Gunslinging Chain 3 | . 1 . 1 . . 1 . 1 1 1 . . 1 3 . 1 1 2 . . 1 . 1 . . . . . Shots Hit Robots 2180 | 23 70 45 121 17 16 62 . 79 229 177 57 61 9 204 . 173 214 211 53 . 84 48 32 . 50 3 50 92 Core Hits 1181 | 7 29 25 49 9 7 32 . 30 111 75 31 17 3 99 . 145 118 176 25 . 54 28 13 . 21 2 22 53 Critical Kills 17 | . . . . . . . . . . 1 . 2 . . . . 5 1 1 . 1 3 1 . 1 . . 1 Critical Parts Destroyed 32 | . 1 . . . . . . 3 3 3 1 1 . 2 . 3 4 1 3 . 4 2 . . . . 1 . Critical Strikes 69 | . 3 1 . . . . . 3 3 4 1 3 . 5 . 6 9 6 4 . 5 6 1 . 1 . 3 5 Burn 2 | . . . . . . . . . . . . . . . . . . . . . . . . . . . 2 . Meltdown 1 | . . . . . . . . . . . . . . . . . . . . . . . . . . . . 1 Destroy 48 | . . . . . . . . 3 3 4 1 3 . 2 . 3 9 2 4 . 5 6 1 . 1 . 1 . Blast 7 | . 2 1 . . . . . . . . . . . . . . . . . . . . . . . . . 4 Smash 1 | . 1 . . . . . . . . . . . . . . . . . . . . . . . . . . . Sever 10 | . . . . . . . . . . . . . . 3 . 3 . 4 . . . . . . . . . . Melee Attacks 173 | . 5 . . . 17 . . 20 1 18 4 2 . 7 . 43 1 45 . . 10 . . . . . . . Impact 5 | . 5 . . . . . . . . . . . . . . . . . . . . . . . . . . . Slashing 166 | . . . . . 17 . . 20 1 18 2 2 . 7 . 43 1 45 . . 10 . . . . . . . Piercing . | . . . . . . . . . . . . . . . . . . . . . . . . . . . . . Sneak Attacks 10 | . 1 . . . . . . . . . 2 2 . . . . . . . . 5 . . . . . . . Combat Hostiles . | . . . . . . . . . . . . . . . . . . . . . . . . . . . . . Follow-up Attacks . | . . . . . . . . . . . . . . . . . . . . . . . . . . . . . Damage Inflicted 49850 | 300 1312 898 1935 265 1640 972 . 1221 4031 4232 1210 1515 127 3677 . 4345 4545 4846 1274 . 2508 891 484 . 1527 69 2176 3850 Guns 35414 | 300 106 82 1688 265 . 972 . 1221 4031 2572 1004 1355 127 2861 . 2804 4545 3460 1274 . 2048 891 484 . 1094 69 715 1446 Cannons 6692 | . 1058 638 247 . . . . . . 473 206 . . . . . . . . . . . . . 433 . 1461 2176 Explosions 406 | . . 178 . . . . . . . . . . . . . . . . . . . . . . . . . 228 Melee 6522 | . 148 . . . 1640 . . . . 1187 . 160 . . . 1541 . 1386 . . 460 . . . . . . . Ramming . | . . . . . . . . . . . . . . . . . . . . . . . . . . . . . Kinetic 39185 | 300 1164 651 1754 265 . 972 . 1221 4031 2445 1004 1355 127 2861 . 2804 4545 3460 1274 . 2048 843 434 . 1527 44 1327 2729 Thermal 3737 | . . 69 181 . . . . . . 600 206 . . 816 . . . . . . . 48 50 . . 25 849 893 Explosive 346 | . . 178 . . . . . . . . . . . . . . . . . . . . . . . . . 168 Electromagnetic 60 | . . . . . . . . . . . . . . . . . . . . . . . . . . . . 60 Impact 148 | . 148 . . . . . . . . . . . . . . . . . . . . . . . . . . . Slashing 6374 | . . . . . 1640 . . . . 1187 . 160 . . . 1541 . 1386 . . 460 . . . . . . . Piercing . | . . . . . . . . . . . . . . . . . . . . . . . . . . . . . Highest Corruption 11 | . . . . . . . . 1 1 4 . . . . . 1 8 11 11 . 5 5 5 5 1 . . 4 Average Corruption 4 | . . . . . . . . 1 1 2 . . . . . 1 4 10 11 . 4 5 5 5 1 . . 1 Corruption Purged . | . . . . . . . . . . . . . . . . . . . . . . . . . . . . . Corruption Blocked . | . . . . . . . . . . . . . . . . . . . . . . . . . . . . . Effects 318 | . . . . . . . . 6 15 35 . . . . . 15 30 71 55 . 2 36 36 2 9 . . 6 Message Errors 72 | . . . . . . . . . 4 8 . . . . . 4 6 13 19 . 1 8 7 . 1 . . 1 Matter Fused 76 | . . . . . . . . 5 2 7 . . . . . 3 7 18 9 . . 11 10 1 3 . . . Heat Flow Errors 30 | . . . . . . . . . 1 1 . . . . . 3 3 12 1 . . 5 3 . 1 . . . Energy Discharges 39 | . . . . . . . . . . 4 . . . . . 1 3 12 5 . 1 5 6 . 1 . . 1 Parts Rejected 3 | . . . . . . . . . . . . . . . . . 1 1 1 . . . . . . . . . Parts Fused 3 | . . . . . . . . . . . . . . . . . . . 3 . . . . . . . . . Data Loss (minor) 37 | . . . . . . . . 1 2 5 . . . . . 1 5 5 4 . . 6 6 . 2 . . . Data Loss (major) 18 | . . . . . . . . . . 3 . . . . . 1 1 4 5 . . . 3 . . . . 1 Misfires 13 | . . . . . . . . . 3 3 . . . . . . . 1 5 . . . . 1 . . . . Alerts 8 | . . . . . . . . . 1 2 . . . . . . 1 2 2 . . . . . . . . . Misdirections 1 | . . . . . . . . . . . . . . . . . . 1 . . . . . . . . . . Weapon Failures 18 | . . . . . . . . . 2 2 . . . . . 2 3 2 1 . . 1 1 . 1 . . 3 Overload Shots . | . . . . . . . . . . . . . . . . . . . . . . . . . . . . . Overflow Damage 1206 | . 130 50 . . 270 . . . . 256 . . . 7 . 139 . 90 . . 107 . . . . . 37 120 Projectiles 190 | . . 50 . . . . . . . 8 . . . 7 . . . . . . . . . . . . 37 88 Explosions 34 | . 2 . . . . . . . . . . . . . . . . . . . . . . . . . . 32 Melee 982 | . 128 . . . 270 . . . . 248 . . . . . 139 . 90 . . 107 . . . . . . . Knockbacks 38 | . 14 13 . . . . . . . . . . . . . . . . . . . . . . 4 . 1 6 Impact 1 | . 1 . . . . . . . . . . . . . . . . . . . . . . . . . . . Kinetic 34 | . 12 13 . . . . . . . . . . . . . . . . . . . . . . 3 . 1 5 Secondary 3 | . 1 . . . . . . . . . . . . . . . . . . . . . . . 1 . . 1 Self-Inflicted Damage 133 | . 106 27 . . . . . . . . . . . . . . . . . . . . . . . . . . Shots 5 | . 3 2 . . . . . . . . . . . . . . . . . . . . . . . . . . Rammed . | . . . . . . . . . . . . . . . . . . . . . . . . . . . . . Targets Rammed . | . . . . . . . . . . . . . . . . . . . . . . . . . . . . . Kicked . | . . . . . . . . . . . . . . . . . . . . . . . . . . . . . Crushed . | . . . . . . . . . . . . . . . . . . . . . . . . . . . . . Highest Temperature 399 | . 87 183 338 50 . 329 . 159 321 399 180 24 66 90 . 181 167 247 181 . 224 307 376 . 152 48 234 387 Average Temperature 61 | . 28 31 73 17 . 109 . 61 83 102 64 8 35 32 . 26 14 35 29 . 58 76 113 . 16 30 88 115 Received Heat Transfer 3994 | . 159 39 150 30 . 234 . 102 918 258 78 . . 207 . 150 422 744 84 . 42 81 12 . 57 . 78 149 Effects 18 | . . . 5 . . 3 . . 5 3 . . . . . . . . . . . . 1 . . . . 1 Energy Bleed 2 | . . . . . . . . . . 2 . . . . . . . . . . . . . . . . . . Interference 13 | . . . 4 . . 3 . . 5 . . . . . . . . . . . . . 1 . . . . . Short Circuit 2 | . . . . . . . . . . 1 . . . . . . . . . . . . . . . . . 1 Damage (minor) 1 | . . . 1 . . . . . . . . . . . . . . . . . . . . . . . . . Siege Activations . | . . . . . . . . . . . . . . . . . . . . . . . . . . . . . Martial Activations . | . . . . . . . . . . . . . . . . . . . . . . . . . . . . . Shielding Activations . | . . . . . . . . . . . . . . . . . . . . . . . . . . . . . Robots Disrupted . | . . . . . . . . . . . . . . . . . . . . . . . . . . . . . Combat Hostiles . | . . . . . . . . . . . . . . . . . . . . . . . . . . . . . Robots Corrupted 1 | . 1 . . . . . . . . . . . . . . . . . . . . . . . . . . . Combat Hostiles . | . . . . . . . . . . . . . . . . . . . . . . . . . . . . . Parts Fried 4 | . 3 . . . . . . . . . . . . . . 1 . . . . . . . . . . . . Impact Corruptions 5 | . 5 . . . . . . . . . . . . . . . . . . . . . . . . . . . Robots Melted 1 | . . . . . . . . . . . . . . . . . . . . . . . . . . . . 1 Combat Hostiles . | . . . . . . . . . . . . . . . . . . . . . . . . . . . . . Parts Melted 13 | . . . . . . . . . . 3 . . 1 . . . . . . . 3 . 1 . . . 4 1 Heat Transferred 7027 | . . 148 370 . . . . . . 1168 400 . . 2738 . . . . . . . 74 74 . . 37 1131 887 Parts Sabotaged . | . . . . . . . . . . . . . . . . . . . . . . . . . . . . . Parts Stolen . | . . . . . . . . . . . . . . . . . . . . . . . . . . . . . Parts Stripped . | . . . . . . . . . . . . . . . . . . . . . . . . . . . . . Power Chain Reactions 1 | . 1 . . . . . . . . . . . . . . . . . . . . . . . . . . . Alert | -11 -10 -10 -9 -9 -9 -8 -8 -8 -8 -8 -7 -7 -7 -7 -7 -7 -7 -7 -7 -7 -5 -5 -5 -5 -4 -4 -4 -3 ------- Run | Yrd Mat Min Mat Min Exi Min Mat Gar Mat Gar Fac Was Fac Gar Fac Gar Sto Gar Rec Scr Fac Upp Upp War Pro Fac DSF Res Maximum Alert Level 5 | . . . 1 1 . 1 . 4 3 5 3 1 . 4 3 5 5 5 4 . 1 . . . . 3 3 3 Low Security (%) 36 | 100 100 100 60 62 . 47 100 7 . . . 96 100 6 . . . . . . 61 . . . . . . . Level 1 9 | . . . 39 37 . 52 . 4 42 . . 3 . 10 . . . . . . 38 . . . . . . . Level 2 10 | . . . . . . . . 34 54 13 . . . 7 . 5 . . . . . . . . . . 33 97 Level 3 13 | . . . . . . . . 31 3 31 100 . . 36 100 19 . 2 4 . . . . . . 100 66 2 Level 4 19 | . . . . . . . . 21 . 42 . . . 38 . 27 80 25 95 . . . . . . . . . Level 5 10 | . . . . . . . . . . 13 . . . . . 46 19 72 . . . . . . . . . . High Security . | . . . . . . . . . . . . . . . . . . . . . . . . . . . . . Max Security . | . . . . . . . . . . . . . . . . . . . . . . . . . . . . . Sterilizations 1 | . . . . . . . . . . . . . . . . . . . . . . . . . . . 1 . Peak Influence 2593 | 10 141 120 373 261 . 318 111 1309 832 1801 1008 309 104 1535 805 2270 1693 2593 1327 . 314 . . . . 900 826 732 Initial 1166 | . . 54 11 138 . . 111 65 637 539 945 309 . 68 805 531 1106 1016 1166 . . . . . . 900 566 464 Average 684 | 1 38 21 181 182 . 175 106 766 447 1155 939 14 6 943 768 1522 1383 1928 1212 . 172 . . . . 857 718 580 Influence Increases 17094 | 30 603 246 769 268 12 584 . 1354 1265 1402 298 . 108 1557 74 1839 1354 1707 447 . 682 200 155 216 157 909 260 598 Destroy 0b10 Robot/C 8260 | . 320 160 460 160 . 380 . 360 720 680 180 . 40 700 . 900 720 960 120 . 340 180 120 120 140 . 160 340 Destroy 0b10 Robot/NC 800 | 30 65 10 70 30 10 15 . . 155 30 50 . . 30 . 35 95 25 55 . 60 . . . . 5 . 30 Destroy Leader 1254 | . 80 30 124 30 . 60 . . 240 30 46 . 20 40 . 60 204 90 . . 36 20 20 . 10 2 30 82 Allied During Kill 731 | . . . . 23 2 99 . 32 17 14 . . 44 163 . 109 23 15 . . 128 . . 36 7 . 8 11 Successful Hack 292 | . 40 . 32 10 . . . 28 8 14 . . 4 14 14 14 73 7 . . 34 . . . . . . . Select Force Hacks 300 | . 60 . 30 . . . . . . . . . . . . . . . 210 . . . . . . . . . Disable Machine 585 | . 30 . . . . 15 . 15 75 15 15 . . 30 60 15 165 30 30 . 30 . . . . . 15 45 Anti-Garrison Action 2950 | . . . . . . . . 800 . 600 . . . 550 . 550 . 450 . . . . . . . . . . Destroy Structure 572 | . 8 31 8 . . . . 59 20 4 7 . . 15 . 126 29 55 32 . 54 . . . . 2 32 90 Advance Influence 900 | . . . . . . . . . . . . . . . . . . . . . . . . . . 900 . . Partial Spotted 15 | . . . 15 . . . . . . . . . . . . . . . . . . . . . . . . . Lose Combat Pursuer 435 | . . 15 30 15 . 15 . 60 30 15 . . . 15 . 30 45 75 . . . . 15 60 . . 15 . Influence Decreases 16380 | 30 462 357 444 535 100 298 185 146 1744 431 1216 883 10 120 850 328 2060 678 1953 1087 390 492 155 147 226 100 243 710 Entered New Map 9012 | . . 87 19 217 88 . 175 36 672 291 856 574 . 30 730 228 1164 548 1427 1087 . 109 . . 69 . 243 362 Time Decay 5558 | 30 452 270 425 318 12 238 10 . 642 . 350 239 10 . 120 . 506 . 526 . 280 383 135 87 147 100 . 278 Lost Part 510 | . 10 . . . . . . 10 110 80 10 . . 10 . 40 60 90 . . 10 . 20 . 10 . . 50 Lost Ally 850 | . . . . . . 60 . 100 20 60 . 70 . 80 . 60 180 40 . . 100 . . 60 . . . 20 Purge Threat 450 | . . . . . . . . . 300 . . . . . . . 150 . . . . . . . . . . . Squads Dispatched 42 | . 5 . 3 . . . . . 8 . 4 . 2 . 2 . 10 . . . 2 . . . . . 1 5 Investigation 13 | . 4 . 3 . . . . . 3 . 1 . . . 1 . 1 . . . . . . . . . . . Extermination 6 | . . . . . . . . . . . 1 . . . 1 . 2 . . . 1 . . . . . . 1 Reinforcement 15 | . 1 . . . . . . . 4 . 1 . 1 . . . 3 . . . 1 . . . . . 1 3 Assault 6 | . . . . . . . . . . . 1 . . . . . 4 . . . . . . . . . . 1 Garrison 2 | . . . . . . . . . 1 . . . 1 . . . . . . . . . . . . . . . Intercept . | . . . . . . . . . . . . . . . . . . . . . . . . . . . . . Searches Triggered . | . . . . . . . . . . . . . . . . . . . . . . . . . . . . . Construction Impeded 3 | . . . . . . . . . 1 . . . . . . . 2 . . . . . . . . . . . Haulers Reinforced . | . . . . . . . . . . . . . . . . . . . . . . . . . . . . . Active Scanning Responses . | . . . . . . . . . . . . . . . . . . . . . . . . . . . . . Cargo Convoy Interrupts . | . . . . . . . . . . . . . . . . . . . . . . . . . . . . . Stealth | -11 -10 -10 -9 -9 -9 -8 -8 -8 -8 -8 -7 -7 -7 -7 -7 -7 -7 -7 -7 -7 -5 -5 -5 -5 -4 -4 -4 -3 --------- Run | Yrd Mat Min Mat Min Exi Min Mat Gar Mat Gar Fac Was Fac Gar Fac Gar Sto Gar Rec Scr Fac Upp Upp War Pro Fac DSF Res Distress Signals 16 | . . . 3 . . . . . 5 1 . . . . . . 2 1 . . . . . 1 . . . 3 Communications Jammed . | . . . . . . . . . . . . . . . . . . . . . . . . . . . . . Distress Signals . | . . . . . . . . . . . . . . . . . . . . . . . . . . . . . Times Spotted 517 | . 22 18 31 4 . 19 . 19 46 33 21 7 3 37 . 46 44 49 4 . 18 10 3 36 12 . 8 27 Peak Tracking Total 12 | . 3 4 6 3 . 6 . 5 5 6 5 3 2 7 . 6 7 7 1 . 5 4 2 12 5 . 4 8 Tactical Retreats 23 | . . 2 1 1 . 1 . 2 2 1 . . . 1 . 2 2 4 . . . . 1 2 . . 1 . Traps | -11 -10 -10 -9 -9 -9 -8 -8 -8 -8 -8 -7 -7 -7 -7 -7 -7 -7 -7 -7 -7 -5 -5 -5 -5 -4 -4 -4 -3 ------- Run | Yrd Mat Min Mat Min Exi Min Mat Gar Mat Gar Fac Was Fac Gar Fac Gar Sto Gar Rec Scr Fac Upp Upp War Pro Fac DSF Res Traps Triggered 40 | . 2 . 3 . . . . 6 1 2 1 . . 7 . 8 1 7 . . 1 . . . . . . 1 Indirectly . | . . . . . . . . . . . . . . . . . . . . . . . . . . . . . Trap Hack Attempts 4 | . . . . . . . . . 4 . . . . . . . . . . . . . . . . . . . Triggered . | . . . . . . . . . . . . . . . . . . . . . . . . . . . . . Disarmed . | . . . . . . . . . . . . . . . . . . . . . . . . . . . . . Reprogrammed 1 | . . . . . . . . . 1 . . . . . . . . . . . . . . . . . . . Reused . | . . . . . . . . . . . . . . . . . . . . . . . . . . . . . Traps Extracted . | . . . . . . . . . . . . . . . . . . . . . . . . . . . . . Installed . | . . . . . . . . . . . . . . . . . . . . . . . . . . . . . Triggered . | . . . . . . . . . . . . . . . . . . . . . . . . . . . . . Most Traps Carried 2 | . . . . 2 2 . . . . . . . . . . . . . . . . . . . . . . . Machines | -11 -10 -10 -9 -9 -9 -8 -8 -8 -8 -8 -7 -7 -7 -7 -7 -7 -7 -7 -7 -7 -5 -5 -5 -5 -4 -4 -4 -3 ---------- Run | Yrd Mat Min Mat Min Exi Min Mat Gar Mat Gar Fac Was Fac Gar Fac Gar Sto Gar Rec Scr Fac Upp Upp War Pro Fac DSF Res Machines Disabled 73 | . 2 . . . . 1 . 6 5 9 1 . . 9 4 9 11 6 2 . 2 1 . 1 . . 1 3 Max in Single Turn 2 | . 2 . . . . 1 . 1 1 1 1 . . 1 1 1 2 1 2 . 1 1 . 1 . . 1 1 Garrison Relay 25 | . . . . . . . . 5 . 5 . . . 5 . 6 . 4 . . . . . . . . . . Phase Generator 2 | . . . . . . . . . . 1 . . . 1 . . . . . . . . . . . . . . Machines Repaired . | . . . . . . . . . . . . . . . . . . . . . . . . . . . . . Machines Dismantled 12 | . . . . . . . . . . 3 . . . 2 4 . 1 . . . . 1 . 1 . . . . Machines Sabotaged . | . . . . . . . . . . . . . . . . . . . . . . . . . . . . . Overloaded Fab Kills . | . . . . . . . . . . . . . . . . . . . . . . . . . . . . . Hacking | -11 -10 -10 -9 -9 -9 -8 -8 -8 -8 -8 -7 -7 -7 -7 -7 -7 -7 -7 -7 -7 -5 -5 -5 -5 -4 -4 -4 -3 --------- Run | Yrd Mat Min Mat Min Exi Min Mat Gar Mat Gar Fac Was Fac Gar Fac Gar Sto Gar Rec Scr Fac Upp Upp War Pro Fac DSF Res Machines Accessed 95 | . 10 . 10 1 2 . 2 4 12 4 4 . 2 1 1 3 10 2 13 . 1 2 1 4 . 3 . 3 Terminals 62 | . 7 . 8 1 . . 1 4 7 4 2 . . 1 . 3 9 2 6 . 1 1 . . . 3 . 2 Fabricators 1 | . . . . . . . . . . . . . . . . . . . . . . . . . . . . 1 Repair Stations 5 | . 1 . 1 . . . . . 2 . 1 . . . . . . . . . . . . . . . . . Recycling Units 9 | . 2 . . . . . . . . . . . . . . . . . 7 . . . . . . . . . Scanalyzers 5 | . . . 1 . . . . . 2 . 1 . 1 . . . . . . . . . . . . . . . Garrison Access 5 | . . . . . . . 1 . 1 . . . 1 . 1 . 1 . . . . . . . . . . . Total Hacks 225 | . 29 . 30 3 2 . 7 9 55 5 9 . 4 1 2 4 20 3 20 . 3 2 1 7 . 4 . 5 Successful 107 | . 15 . 13 2 2 . 2 3 29 4 1 . 1 1 2 3 8 1 7 . 2 2 1 7 . 1 . . Failed 116 | . 13 . 17 . . . 5 6 26 1 8 . 3 . . 1 12 2 13 . 1 . . . . 3 . 5 Catastrophic 32 | . 3 . 1 . . . 1 1 3 . 2 . 1 . . 1 4 2 7 . 1 . . . . 3 . 2 Database Lockouts 2 | . 1 . . 1 . . . . . . . . . . . . . . . . . . . . . . . . Manual 86 | . 17 . 17 3 1 . 4 . 25 . 2 . 1 . 1 . 1 . 12 . . . . . . 2 . . Terminals 149 | . 21 . 24 3 . . 3 9 30 5 5 . . 1 . 4 19 3 11 . 3 1 . . . 4 . 3 Fabricators 2 | . . . . . . . . . . . . . . . . . . . . . . . . . . . . 2 Repair Stations 17 | . 2 . 2 . . . . . 11 . 2 . . . . . . . . . . . . . . . . . Recycling Units 15 | . 6 . . . . . . . . . . . . . . . . . 9 . . . . . . . . . Scanalyzers 18 | . . . 4 . . . . . 11 . 2 . 1 . . . . . . . . . . . . . . . Garrison Access 13 | . . . . . . . 4 . 3 . . . 3 . 2 . 1 . . . . . . . . . . . Terminal Hacks 47 | . 3 . 3 1 2 . . 3 6 4 . . . 1 . 3 7 1 . . 2 2 1 7 . 1 . . Record 9 | . . . . . 1 . . . . . . . . . . . . . . . . 2 . 6 . . . . Part Schematic 3 | . 1 . . 1 . . . . 1 . . . . . . . . . . . . . . . . . . . Robot Schematic 2 | . . . 1 . . . . . . . . . . . . . . . . . 1 . . . . . . . Prototype ID Bank 3 | . 1 . 1 . . . . . 1 . . . . . . . . . . . . . . . . . . . Open Door 7 | . . . . . . . . . . 1 . . . . . 1 2 1 . . . . 1 1 . . . . Open DSF 1 | . . . . . . . . . . . . . . . . . . . . . . . . . . 1 . . Branch Access Points 2 | . . . 1 . . . . . . . . . . . . . . . . . 1 . . . . . . . Emergency Access Points 4 | . . . . . . . . 1 . 1 . . . 1 . 1 . . . . . . . . . . . . Alert Level 1 | . . . . . . . . . 1 . . . . . . . . . . . . . . . . . . . Unreport Threat 3 | . . . . . . . . . 2 . . . . . . . 1 . . . . . . . . . . . Locate Traps 4 | . . . . . . . . . 1 . . . . . . . 3 . . . . . . . . . . . Hauler Manifests 1 | . 1 . . . . . . . . . . . . . . . . . . . . . . . . . . . Zone Layout 1 | . . . . . . . . . . . . . . . . . 1 . . . . . . . . . . . Garrison Registry 1 | . . . . . . . . . . 1 . . . . . . . . . . . . . . . . . . Patrol Navigation 2 | . . . . . . . . 1 . . . . . . . 1 . . . . . . . . . . . . Security Stations 2 | . . . . . . . . 1 . 1 . . . . . . . . . . . . . . . . . . Proto ID Catalog 1 | . . . . . 1 . . . . . . . . . . . . . . . . . . . . . . . Fabricator Hacks . | . . . . . . . . . . . . . . . . . . . . . . . . . . . . . Repair Station Hacks 10 | . 2 . 2 . . . . . 6 . . . . . . . . . . . . . . . . . . . Scan Component 5 | . 1 . 1 . . . . . 3 . . . . . . . . . . . . . . . . . . . Repair 5 | . 1 . 1 . . . . . 3 . . . . . . . . . . . . . . . . . . . Recycling Unit Hacks 2 | . 2 . . . . . . . . . . . . . . . . . . . . . . . . . . . Retrieve Components 2 | . 2 . . . . . . . . . . . . . . . . . . . . . . . . . . . Scanalyzer 13 | . . . 2 . . . . . 10 . 1 . . . . . . . . . . . . . . . . . Insert Component 7 | . . . 1 . . . . . 5 . 1 . . . . . . . . . . . . . . . . . Analyze 6 | . . . 1 . . . . . 5 . . . . . . . . . . . . . . . . . . . Garrison Access Hacks 5 | . . . . . . . 1 . 1 . . . 1 . 1 . 1 . . . . . . . . . . . Unlock Access 5 | . . . . . . . 1 . 1 . . . 1 . 1 . 1 . . . . . . . . . . . Unauthorized Hacks 30 | . 8 . 6 1 . . 1 . 6 . . . . . 1 . . . 7 . . . . . . . . . Terminals 18 | . 6 . 5 1 . . 1 . 5 . . . . . . . . . . . . . . . . . . . Track 1 | . . . . 1 . . . . . . . . . . . . . . . . . . . . . . . . Operators 1 | . 1 . . . . . . . . . . . . . . . . . . . . . . . . . . . Skim 16 | . 5 . 5 . . . 1 . 5 . . . . . . . . . . . . . . . . . . . Fabricators . | . . . . . . . . . . . . . . . . . . . . . . . . . . . . . Repair Stations . | . . . . . . . . . . . . . . . . . . . . . . . . . . . . . Recycling Units 9 | . 2 . . . . . . . . . . . . . . . . . 7 . . . . . . . . . Tunnel 9 | . 2 . . . . . . . . . . . . . . . . . 7 . . . . . . . . . Scanalyzers 1 | . . . 1 . . . . . . . . . . . . . . . . . . . . . . . . . Extract 1 | . . . 1 . . . . . . . . . . . . . . . . . . . . . . . . . Garrison Access 2 | . . . . . . . . . 1 . . . . . 1 . . . . . . . . . . . . . Reprogram 2 | . . . . . . . . . 1 . . . . . 1 . . . . . . . . . . . . . Data Cores Recovered 3 | . 1 . . . . . . . 1 . 1 . . . . . . . . . . . . . . . . . Used 1 | . 1 . . . . . . . . . . . . . . . . . . . . . . . . . . . Hacking Detections 68 | . 9 . 9 . . . 2 2 11 3 4 . 2 1 . 2 8 2 7 . 1 . . . . 2 . 3 Full Trace Events 7 | . . . . . . . . 1 1 . 1 . . . . 1 1 1 1 . . . . . . . . . Feedback Events 2 | . . . . . . . . 1 . . . . . . . 1 . . . . . . . . . . . . Corruption 2 | . . . . . . . . 1 . . . . . . . 1 . . . . . . . . . . . . Feedback Blocked . | . . . . . . . . . . . . . . . . . . . . . . . . . . . . . Robot Schematics Acquired 2 | . . . 1 . . . . . . . . . . . . . . . . . 1 . . . . . . . Robots Built . | . . . . . . . . . . . . . . . . . . . . . . . . . . . . . Authchips . | . . . . . . . . . . . . . . . . . . . . . . . . . . . . . Time . | . . . . . . . . . . . . . . . . . . . . . . . . . . . . . Total Robot Build Rating . | . . . . . . . . . . . . . . . . . . . . . . . . . . . . . Part Schematics Acquired 21 | . 1 . 14 . . . . . 6 . . . . . . . . . . . . . . . . . . . Parts Built . | . . . . . . . . . . . . . . . . . . . . . . . . . . . . . Authchips . | . . . . . . . . . . . . . . . . . . . . . . . . . . . . . Time . | . . . . . . . . . . . . . . . . . . . . . . . . . . . . . Total Part Build Rating . | . . . . . . . . . . . . . . . . . . . . . . . . . . . . . Parts Repaired 5 | . 1 . 1 . . . . . 3 . . . . . . . . . . . . . . . . . . . Time 189 | . 26 . 26 . . . . . 137 . . . . . . . . . . . . . . . . . . . Parts Recycled . | . . . . . . . . . . . . . . . . . . . . . . . . . . . . . Recycled Matter . | . . . . . . . . . . . . . . . . . . . . . . . . . . . . . Retrieved Matter . | . . . . . . . . . . . . . . . . . . . . . . . . . . . . . Retrieved Components 9 | . 9 . . . . . . . . . . . . . . . . . . . . . . . . . . . Parts Scanalyzed 6 | . . . 1 . . . . . 5 . . . . . . . . . . . . . . . . . . . Part Schematics Acquired 6 | . . . 1 . . . . . 5 . . . . . . . . . . . . . . . . . . . Parts Damaged 1 | . . . . . . . . . 1 . . . . . . . . . . . . . . . . . . . Bothacking | -11 -10 -10 -9 -9 -9 -8 -8 -8 -8 -8 -7 -7 -7 -7 -7 -7 -7 -7 -7 -7 -5 -5 -5 -5 -4 -4 -4 -3 ------------ Run | Yrd Mat Min Mat Min Exi Min Mat Gar Mat Gar Fac Was Fac Gar Fac Gar Sto Gar Rec Scr Fac Upp Upp War Pro Fac DSF Res Used RIF Installer . | . . . . . . . . . . . . . . . . . . . . . . . . . . . . . Robots Hacked 1 | . . . . . . . . . . . 1 . . . . . . . . . . . . . . . . . Non-combat 1 | . . . . . . . . . . . 1 . . . . . . . . . . . . . . . . . Combat . | . . . . . . . . . . . . . . . . . . . . . . . . . . . . . Robot Hacks Applied 2 | . . . . . . . . . . . 2 . . . . . . . . . . . . . . . . . parse_system 1 | . . . . . . . . . . . 1 . . . . . . . . . . . . . . . . . find_chute 1 | . . . . . . . . . . . 1 . . . . . . . . . . . . . . . . . Relay Couplers Released 99 | . . . . . . . . 18 . 23 . . . 21 . 23 . 14 . . . . . . . . . . Machine Destruction 99 | . . . . . . . . 18 . 23 . . . 21 . 23 . 14 . . . . . . . . . . Fabnet Peak Effective % . | . . . . . . . . . . . . . . . . . . . . . . . . . . . . . Robots Rewired 22 | . . . . . 3 . . 3 . . . . . . . . . 3 8 . . . . 5 . . . . Allies Hacked 3 | . . . . . . . . . . . . . . 2 . . . . . . . . . . . . . 1 Hacks Repelled . | . . . . . . . . . . . . . . . . . . . . . . . . . . . . . Allies | -11 -10 -10 -9 -9 -9 -8 -8 -8 -8 -8 -7 -7 -7 -7 -7 -7 -7 -7 -7 -7 -5 -5 -5 -5 -4 -4 -4 -3 -------- Run | Yrd Mat Min Mat Min Exi Min Mat Gar Mat Gar Fac Was Fac Gar Fac Gar Sto Gar Rec Scr Fac Upp Upp War Pro Fac DSF Res Total Allies 62 | . . . . 3 3 . . 3 2 1 . 19 . 2 1 2 10 3 8 . . . . 5 . . . . Largest Group 19 | . . . . 3 6 6 3 3 2 2 . 19 10 9 3 3 10 4 8 8 8 . . 5 2 2 2 2 Highest-Rated Group 475 | . . . . 40 77 77 32 82 32 29 . 475 272 241 179 179 173 92 209 209 209 . . 267 128 128 128 128 Highest-Rated Ally 80 | . . . . 16 21 21 16 31 26 20 . 35 31 80 80 80 29 31 34 34 34 . . 64 64 64 64 64 Initial Warlord ECA Mod 721 | . . . . . . . . . 9 9 20 20 20 20 31 31 41 41 49 49 47 47 47 47 46 46 46 55 Total Orders 14 | . . . . . . . . . . . . . . . . . . . . . 2 . . 12 . . . . STAY 7 | . . . . . . . . . . . . . . . . . . . . . 1 . . 6 . . . . ROAM 1 | . . . . . . . . . . . . . . . . . . . . . . . . 1 . . . . FOLLOW 3 | . . . . . . . . . . . . . . . . . . . . . 1 . . 2 . . . . GUARD 3 | . . . . . . . . . . . . . . . . . . . . . . . . 3 . . . . Ally Attacks 503 | . . . . 16 . 31 . 16 15 17 . 151 16 67 . 60 39 13 . . 20 . . 42 . . . . Total Damage 8745 | . . . . 217 . 315 . 264 117 158 . 2176 214 915 . 1705 497 251 . . 685 . . 1231 . . . . Kills 61 | . . . . 7 . 5 . 3 1 2 . 6 1 9 . 13 2 2 . . 4 . . 6 . . . . Allies Corrupted 1 | . . . . . . . . . . . . . . . . . 1 . . . . . . . . . . . Allies Melted . | . . . . . . . . . . . . . . . . . . . . . . . . . . . . . Intel | -11 -10 -10 -9 -9 -9 -8 -8 -8 -8 -8 -7 -7 -7 -7 -7 -7 -7 -7 -7 -7 -5 -5 -5 -5 -4 -4 -4 -3 ------- Run | Yrd Mat Min Mat Min Exi Min Mat Gar Mat Gar Fac Was Fac Gar Fac Gar Sto Gar Rec Scr Fac Upp Upp War Pro Fac DSF Res Active Infowar (turns) 4172 | . 360 . . . . . . . . 2 . . . . . 1 . . . . . . 177 1821 1181 93 . 537 Optics 3272 | . . . . . . . . . . . . . . . . . . . . . . . 177 1821 1181 93 . . IFF 537 | . . . . . . . . . . . . . . . . . . . . . . . . . . . . 537 Traps 2 | . . . . . . . . . . 2 . . . . . . . . . . . . . . . . . . Seismic 360 | . 360 . . . . . . . . . . . . . . . . . . . . . . . . . . . Spoofing 1 | . . . . . . . . . . . . . . . . 1 . . . . . . . . . . . . Robot Analysis Total . | . . . . . . . . . . . . . . . . . . . . . . . . . . . . . Derelict Logs Recovered 9 | . . 3 . 2 . . . . . . . . . . . . . . . . . 2 1 . 1 . . . Drone Launches . | . . . . . . . . . . . . . . . . . . . . . . . . . . . . . Drone Recoveries . | . . . . . . . . . . . . . . . . . . . . . . . . . . . . . Exploration | -11 -10 -10 -9 -9 -9 -8 -8 -8 -8 -8 -7 -7 -7 -7 -7 -7 -7 -7 -7 -7 -5 -5 -5 -5 -4 -4 -4 -3 ------------- Run | Yrd Mat Min Mat Min Exi Min Mat Gar Mat Gar Fac Was Fac Gar Fac Gar Sto Gar Rec Scr Fac Upp Upp War Pro Fac DSF Res Turns Passed 36784 | 206 1651 1439 1064 708 767 619 34 1330 2306 1935 795 5011 169 1947 249 2054 1362 2064 1464 2170 697 1231 1382 1821 1181 211 312 605 Spaces Moved 20200 | 149 1022 885 727 594 631 470 27 881 1209 1024 510 827 112 970 124 1199 704 1183 943 1697 418 811 865 1039 588 137 149 305 Core 357 | 1 . . . . . . . . . . . 356 . . . . . . . . . . . . . . . . Treads . | . . . . . . . . . . . . . . . . . . . . . . . . . . . . . Legs . | . . . . . . . . . . . . . . . . . . . . . . . . . . . . . Wheels 19843 | 148 1022 885 727 594 631 470 27 881 1209 1024 510 471 112 970 124 1199 704 1183 943 1697 418 811 865 1039 588 137 149 305 Hover . | . . . . . . . . . . . . . . . . . . . . . . . . . . . . . Flight . | . . . . . . . . . . . . . . . . . . . . . . . . . . . . . Fastest Speed 50 | 50 80 95 95 110 110 110 125 120 115 120 120 125 125 130 130 120 120 115 115 115 130 125 135 135 150 130 130 131 Average Speed 145 | 90 91 95 100 110 110 110 125 122 121 137 126 593 129 130 130 127 135 133 134 124 130 139 148 141 184 138 144 140 Slowest Speed 1200 | 100 125 95 110 110 110 110 125 170 185 185 160 1200 130 130 130 165 180 180 135 130 140 140 200 150 260 145 145 185 Overloaded Moves . | . . . . . . . . . . . . . . . . . . . . . . . . . . . . . Propulsion Burnouts . | . . . . . . . . . . . . . . . . . . . . . . . . . . . . . Robots Hopped . | . . . . . . . . . . . . . . . . . . . . . . . . . . . . . Potential Cave-ins 4 | . . . . . . . . . . 4 . . . . . . . . . . . . . . . . . . Cave-ins Triggered . | . . . . . . . . . . . . . . . . . . . . . . . . . . . . . Exploration Rate (%) 65 | 6 96 102 65 98 91 98 2 90 94 88 15 95 3 89 5 96 91 80 98 59 7 89 85 93 67 6 84 12 Regions Visited 28 Branch Regions 11 Pre-discovered Areas 18 | . 3 2 . 3 1 . . . . . . . . . . . . . 7 . . 1 . 1 . . . . Known Exits Taken 13 | . 1 1 1 . . 1 1 . 1 . . . 1 . 1 . 1 . . 1 1 . 1 . . 1 . . Unknown Exits Taken 7 | 1 . . . 1 1 . . . . . . . . . . . . . 1 . . 1 . 1 1 . . . Scrap Searched 23 | . . 2 . 1 . 1 . . . . . . . . . . . . . 10 . 5 1 . 3 . . . Spaces Dug 59 | . 3 7 . . . . . 4 1 6 2 . . 5 . 7 1 13 . . 4 . . 1 4 . . 1 Terrain Destroyed 280 | . 5 37 . . . . . 4 1 7 2 . 1 6 . 11 24 21 52 . 9 1 3 1 28 2 18 47 Melee 43 | . 3 . . . . . . 4 1 4 2 . . 5 . 6 1 13 . . 4 . . . . . . . Projectile 165 | . . 1 . . . . . . . 3 . . 1 1 . 5 12 6 51 . 5 1 3 1 28 2 18 27 AOE 69 | . 2 36 . . . . . . . . . . . . . . 11 . . . . . . . . . . 20 Terrain Rammed . | . . . . . . . . . . . . . . . . . . . . . . . . . . . . . Walls Destroyed . | . . . . . . . . . . . . . . . . . . . . . . . . . . . . . Machines Disabled . | . . . . . . . . . . . . . . . . . . . . . . . . . . . . . Actions | -11 -10 -10 -9 -9 -9 -8 -8 -8 -8 -8 -7 -7 -7 -7 -7 -7 -7 -7 -7 -7 -5 -5 -5 -5 -4 -4 -4 -3 --------- Run | Yrd Mat Min Mat Min Exi Min Mat Gar Mat Gar Fac Was Fac Gar Fac Gar Sto Gar Rec Scr Fac Upp Upp War Pro Fac DSF Res Total 24925 | 181 1606 1385 945 633 687 515 27 1040 1777 1293 600 900 130 1272 159 1508 897 1461 1086 1756 517 863 951 1368 629 154 203 382 Wait 2033 | . 465 413 104 17 2 14 . 9 382 56 . 21 8 32 . 45 51 42 19 27 11 13 55 211 11 4 16 5 Move 20172 | 148 1021 884 726 593 630 469 26 879 1208 1023 510 826 112 969 123 1197 703 1182 942 1696 417 810 864 1038 587 136 148 305 Hop . | . . . . . . . . . . . . . . . . . . . . . . . . . . . . . Pick Up 261 | 8 21 7 24 5 3 2 . 11 21 18 15 10 . 6 2 20 8 14 8 10 16 4 6 10 1 3 1 7 Fast Attach 72 | 7 1 . 4 . . . . 1 5 8 4 . 1 1 . 2 2 7 2 4 6 . 1 5 1 2 4 4 Attach 87 | . 2 2 1 1 . . 1 2 11 8 2 . . 1 2 7 9 11 2 5 4 1 4 1 2 1 . 7 Detach 8 | . . . . . . . . . . 2 . . . . . . . . 4 . . . . . 2 . . . Swap 363 | . 14 12 13 2 2 1 . 23 23 25 18 11 4 24 4 44 21 23 12 5 19 10 6 23 1 4 10 9 Drop 302 | . 13 12 23 7 3 2 . 12 23 20 23 17 3 6 2 20 10 14 15 9 15 5 6 21 1 3 9 8 Fire 952 | 18 64 55 50 8 . 27 . 29 99 77 24 13 2 132 . 73 78 64 21 . 19 13 9 1 23 1 15 37 Melee 173 | . 5 . . . 17 . . 20 1 18 4 2 . 7 . 43 1 45 . . 10 . . . . . . . Ram . | . . . . . . . . . . . . . . . . . . . . . . . . . . . . . Kick . | . . . . . . . . . . . . . . . . . . . . . . . . . . . . . Crush . | . . . . . . . . . . . . . . . . . . . . . . . . . . . . . Escape Stasis 193 | . . . . . . . . 31 . 11 . . . 48 . 57 6 40 . . . . . . . . . . Rewire 182 | . . . . . 30 . . 21 . . . . . 1 . . . 19 61 . . . . 50 . . . . Trap 4 | . . . . . . . . . 4 . . . . . . . . . . . . . . . . . . . Miscellaneous 123 | . . . . . . . . 2 . 27 . . . 45 26 . 8 . . . . 7 . 8 . . . . Route ------- -11/Scrapyard -10/Materials (discovered 5 exits: *Mat x3 / *Min / Sub) -10/Mines (discovered 3 exits: *Mat x2 / Sub) -9/Materials (discovered 5 exits: *Mat x3 / *Min x2) -9/Mines (discovered 4 exits: *Mat x2 / *Exi / [*Zio]) -9/Exiles (discovered 2 exits: [*Min x2]) -8/Mines (discovered 2 exits: *Mat x2) -8/Materials -8/Garrison (discovered 3 exits: *Mat x3) -8/Materials (discovered 4 exits: *Fac x3 / Gar) -8/Garrison (discovered 3 exits: *Fac x3) -7/Factory (discovered 2 exits: *Fac / Sto) -7/Waste -7/Factory (discovered 2 exits: Sto / Gar) -7/Garrison (discovered 3 exits: *Fac x3) -7/Factory -7/Garrison (discovered 3 exits: *Sto x3) -7/Storage (discovered 3 exits: *Fac / *Rec / Gar) -7/Garrison (discovered 3 exits: *Rec x3) -7/Recycling (discovered 2 exits: *Fac / [*Scr]) -7/Scraptown -5/Factory (discovered 4 exits: *Upp x2 / Ext x2) -5/Upper Caves -5/Upper Caves (discovered 2 exits: *Fac / *War) -5/Warlord -4/Proximity Caves -4/Factory (discovered 3 exits: Upp / Arm / DSF) -4/DSF -3/Research (discovered 1 exit: Res) History --------- Turn | Location | Event 5 | -11/Scrapyard | Discovered new exit (range 16) 207 | -11/Scrapyard | Entered Materials 319 | -10/Materials | Build established: Mutant 339 | -10/Materials | Discovered new exit (range 9) 901 | -10/Materials | Repaired Lgt. Cannon 1007 | -10/Materials | Derelicts attacked the area 1030 | -10/Materials | Discovered new exit (range 11) 1176 | -10/Materials | Learned location of 1 exit from Storage 1232 | -10/Materials | Learned Materials stockpile data 1279 | -10/Materials | Identified exit to Mines 1279 | -10/Materials | Identified exit to Materials 1314 | -10/Materials | Learned location of 2 exits from Mines 1338 | -10/Materials | Identified exit to Subcaves 1401 | -10/Materials | Central database locked down 1858 | -10/Materials | Entered Mines 1882 | -10/Mines | Learned location of Zion (-7) 1955 | -10/Mines | Assembled infested the area 2969 | -10/Mines | Core integrity fell below 50% 3297 | -10/Mines | Entered Materials 3297 | -9/Materials | Evolved 2 slots: Weapon x2 3516 | -9/Materials | Discovered new exit (range 16) 3627 | -9/Materials | Build established: Tank 3780 | -9/Materials | Repaired Wheel 3785 | -9/Materials | Discovered new exit (range 3) 4034 | -9/Materials | Build established: Gunner 4069 | -9/Materials | Identified exit to Mines 4081 | -9/Materials | Discovered new exit (range 10) 4119 | -9/Materials | Identified exit to Materials 4361 | -9/Materials | Entered Mines 4361 | -9/Mines | Discovered exit to Materials (range 12) 4362 | -9/Mines | Learned location of Storage (-7) 4396 | -9/Mines | Assisted by bots powering up and referring to "LRC-V3" 4484 | -9/Mines | A Derelict revealed a hidden shortcut to a safe place 4612 | -9/Mines | Discovered exit to Materials (range 16) 4690 | -9/Mines | Found a hidden stash of uninstalled traps 4863 | -9/Mines | Central database locked down 5022 | -9/Mines | Received a Rocket Launcher from a helpful Derelict 5056 | -9/Mines | Deemed a non-threat by the Exiles lab entrance 5057 | -9/Mines | Discovered new exit (range 5) 5069 | -9/Mines | Entered Exiles 5069 | -9/Exiles | Found Exiles lab destroyed 5069 | -9/Exiles | Accompanied by 3 allies 5084 | -9/Exiles | Discovered new exit (range 15) 5227 | -9/Exiles | Opened EX-Vault 5231 | -9/Exiles | Found Longsword +1 5428 | -9/Exiles | Build established: Commander-Gunner 5803 | -9/Exiles | Discovered new exit (range 12) 5836 | -9/Exiles | Entered Mines 5836 | -8/Mines | Accompanied by 6 allies 6334 | -8/Mines | Discovered exit to Materials (range 3) 6335 | -8/Mines | Discovered exit to Materials (range 12) 6455 | -8/Mines | Entered Materials 6455 | -8/Materials | Accompanied by 3 allies 6455 | -8/Materials | Evolved 2 slots: Utility x1, Weapon x1 6476 | -8/Materials | Build established: Gunner 6480 | -8/Materials | Identified exit to Garrison 6489 | -8/Materials | Entered Garrison 6489 | -8/Garrison | Warlord forces raided the area 6489 | -8/Garrison | Accompanied by 3 allies 6535 | -8/Garrison | Triggered checkpoint 6579 | -8/Garrison | Learned Materials security intel 6583 | -8/Garrison | Lost 3 allies 6623 | -8/Garrison | Garrison Relay disabled 6769 | -8/Garrison | Triggered checkpoint 6776 | -8/Garrison | Garrison Relay disabled 6789 | -8/Garrison | Triggered checkpoint 6790 | -8/Garrison | Triggered checkpoint 6837 | -8/Garrison | Triggered checkpoint 6842 | -8/Garrison | Build established: Scavenger-Gunner 6915 | -8/Garrison | Triggered checkpoint 6922 | -8/Garrison | Warlord forces retreated 6957 | -8/Garrison | Garrison Relay disabled 7007 | -8/Garrison | Discovered new exit (range 14) 7147 | -8/Garrison | Found Powered Armor 7149 | -8/Garrison | Found Powered Armor 7311 | -8/Garrison | Garrison Relay disabled 7373 | -8/Garrison | Triggered checkpoint 7399 | -8/Garrison | Discovered new exit (range 14) 7448 | -8/Garrison | Build established: Gunner 7491 | -8/Garrison | Triggered checkpoint 7528 | -8/Garrison | Garrison Relay disabled 7572 | -8/Garrison | Discovered new exit (range 9) 7602 | -8/Garrison | Attempted to access garrison exit controls, blocked by remote lockdown 7819 | -8/Garrison | Entered Materials 7819 | -8/Materials | Accompanied by 1 ally 8416 | -8/Materials | Build established: Scavenger-Gunner 8502 | -8/Materials | Repaired Gauss Rifle 8638 | -8/Materials | Discovered new exit (range 3) 9006 | -8/Materials | Learned Storage trap positions 9060 | -8/Materials | Learned Factory trap positions 9106 | -8/Materials | Learned location of 1 exit from Recycling 9141 | -8/Materials | Lost 4 parts (1n3w) 9144 | -8/Materials | Learned location of 1 exit from Extension 9170 | -8/Materials | Learned Storage emergency access door positions 9186 | -8/Materials | Learned location of 1 exit from Storage 9193 | -8/Materials | Learned 2 Lower Caves zone layouts 9208 | -8/Materials | Identified exit to Factory 9233 | -8/Materials | Learned Storage trap positions 9267 | -8/Materials | Learned 2 Lower Caves zone layouts 9829 | -8/Materials | Repaired Broken Mak. Salvage Targeting Computer 9868 | -8/Materials | Repaired Hvy. Assault Rifle 10058 | -8/Materials | Lost 5 parts (1n1u3w) 10068 | -8/Materials | Identified exit to Garrison 10084 | -8/Materials | Core integrity fell below 50% 10088 | -8/Materials | Garrison activated, responded to threat 10125 | -8/Materials | Entered Garrison 10125 | -8/Garrison | Accompanied by 2 allies 10214 | -8/Garrison | Learned Factory security intel 10251 | -8/Garrison | Triggered checkpoint 10303 | -8/Garrison | Garrison Relay disabled 10377 | -8/Garrison | Phase Generator disabled 10686 | -8/Garrison | Discovered exit to Factory (range 49) 10686 | -8/Garrison | Discovered exit to Factory (range 67) 10686 | -8/Garrison | Discovered exit to Factory (range 74) 10742 | -8/Garrison | Triggered checkpoint 10853 | -8/Garrison | Triggered checkpoint 10949 | -8/Garrison | Triggered checkpoint 11009 | -8/Garrison | Garrison Relay disabled 11058 | -8/Garrison | Rescued a captive Derelict 11350 | -8/Garrison | Triggered checkpoint 11355 | -8/Garrison | Core integrity fell below 20% 11435 | -8/Garrison | Triggered checkpoint 11473 | -8/Garrison | Spotted B-75 Beast 11517 | -8/Garrison | Garrison Relay disabled 11615 | -8/Garrison | Garrison Relay disabled 11802 | -8/Garrison | Garrison Relay disabled 12060 | -8/Garrison | Entered Factory 12060 | -7/Factory | Evolved 2 slots: Utility x1, Weapon x1 12061 | -7/Factory | Identified exit to Storage 12062 | -7/Factory | Loaded intel: 87 trap records 12358 | -7/Factory | Build established: Scavenger-Executioner 12460 | -7/Factory | First assault squad dispatched 12649 | -7/Factory | Discovered new exit (range 8) 12855 | -7/Factory | Sucked down chute 12855 | -7/Factory | Entered Waste 12874 | -7/Waste | Warlord forces began an assault 12973 | -7/Waste | Spotted C-40 Crusher 12983 | -7/Waste | Allies destroyed C-40 Crusher 12992 | -7/Waste | Spotted C-40 Crusher 12997 | -7/Waste | Destroyed C-40 Crusher 13009 | -7/Waste | Spotted C-40 Crusher 13044 | -7/Waste | Spotted C-40 Crusher 13055 | -7/Waste | Spotted C-40 Crusher 13060 | -7/Waste | Allies destroyed C-40 Crusher 13064 | -7/Waste | Spotted C-40 Crusher 13064 | -7/Waste | Destroyed C-40 Crusher 13074 | -7/Waste | Allies destroyed C-40 Crusher 13091 | -7/Waste | Lost 6 allies 13334 | -7/Waste | Discovered new exit (range 12) 17866 | -7/Waste | Entered Factory 17866 | -7/Factory | Accompanied by 10 allies 18027 | -7/Factory | Identified exit to Garrison 18035 | -7/Factory | Entered Garrison 18035 | -7/Garrison | Accompanied by 9 allies 18125 | -7/Garrison | Triggered checkpoint 18160 | -7/Garrison | Garrison Relay disabled 18205 | -7/Garrison | Build established: Executioner 18249 | -7/Garrison | Phase Generator disabled 18345 | -7/Garrison | Triggered checkpoint 18356 | -7/Garrison | Triggered checkpoint 18367 | -7/Garrison | Triggered checkpoint 18379 | -7/Garrison | Triggered checkpoint 18407 | -7/Garrison | Destroyed 8 combat bots 18408 | -7/Garrison | Lost 4 allies 18416 | -7/Garrison | Garrison Relay disabled 18768 | -7/Garrison | Triggered checkpoint 18782 | -7/Garrison | Garrison Relay disabled 19101 | -7/Garrison | Discovered new exit (range 7) 19292 | -7/Garrison | Discovered new exit (range 9) 19326 | -7/Garrison | Triggered checkpoint 19366 | -7/Garrison | Garrison Relay disabled 19485 | -7/Garrison | Triggered checkpoint 19542 | -7/Garrison | Garrison Relay disabled 19601 | -7/Garrison | Discovered new exit (range 15) 19630 | -7/Garrison | Build established: Scavenger-Executioner 19631 | -7/Garrison | Found embedded Infiltrators 19982 | -7/Garrison | Entered Factory 19982 | -7/Factory | Accompanied by 2 allies 20115 | -7/Factory | Identified exit to Garrison 20231 | -7/Factory | Entered Garrison 20231 | -7/Garrison | Accompanied by 3 allies 20321 | -7/Garrison | Triggered checkpoint 20352 | -7/Garrison | Garrison Relay disabled 20488 | -7/Garrison | Triggered checkpoint 20596 | -7/Garrison | Triggered checkpoint 20637 | -7/Garrison | Triggered checkpoint 20717 | -7/Garrison | Discovered exit to Storage (range 10) 20869 | -7/Garrison | Triggered checkpoint 20909 | -7/Garrison | Garrison Relay disabled 21046 | -7/Garrison | Triggered checkpoint 21309 | -7/Garrison | Rescued a captive Derelict 21317 | -7/Garrison | Rescued a captive Derelict 21323 | -7/Garrison | Garrison Relay disabled 21372 | -7/Garrison | Discovered exit to Storage (range 3) 21397 | -7/Garrison | Triggered checkpoint 21505 | -7/Garrison | Garrison Relay disabled 21799 | -7/Garrison | Triggered checkpoint 21942 | -7/Garrison | Triggered checkpoint 21968 | -7/Garrison | Discovered exit to Storage (range 11) 21993 | -7/Garrison | Garrison Relay disabled 22019 | -7/Garrison | Garrison Relay disabled 22093 | -7/Garrison | Attempted to access garrison exit controls, blocked by remote lockdown 22285 | -7/Garrison | Entered Storage 22286 | -7/Storage | Identified exit to Recycling 22286 | -7/Storage | Identified exit to Factory 22287 | -7/Storage | Loaded intel: 6 trap records 22290 | -7/Storage | Identified exit to Garrison 22583 | -7/Storage | Used back door to open Recycling access 23085 | -7/Storage | First assault squad dispatched 23194 | -7/Storage | Lost 3 parts (1n1u1w) 23307 | -7/Storage | Core integrity fell below 50% 23509 | -7/Storage | Assisted by bots powering up and referring to "LRC-V3" 23647 | -7/Storage | Entered Garrison 23647 | -7/Garrison | Accompanied by 1 ally 23653 | -7/Garrison | Lost 7 allies 23681 | -7/Garrison | Triggered checkpoint 23710 | -7/Garrison | Garrison Relay disabled 23946 | -7/Garrison | P-60 Hacker assimilated allied XX-860(b) 23947 | -7/Garrison | P-60 Hacker assimilated allied Trooper 4f 24039 | -7/Garrison | Triggered checkpoint 24041 | -7/Garrison | Triggered checkpoint 24114 | -7/Garrison | Destroyed 8 combat bots 24178 | -7/Garrison | System corruption reached 10% 24203 | -7/Garrison | Destroyed 7 combat bots 24218 | -7/Garrison | Discovered exit to Recycling (range 12) 24245 | -7/Garrison | Triggered checkpoint 24304 | -7/Garrison | Garrison Relay disabled 24508 | -7/Garrison | Core integrity fell below 20% 24655 | -7/Garrison | Discovered exit to Recycling (range 13) 24777 | -7/Garrison | Triggered checkpoint 24821 | -7/Garrison | Garrison Relay disabled 24989 | -7/Garrison | Discovered exit to Recycling (range 12) 25035 | -7/Garrison | Triggered checkpoint 25146 | -7/Garrison | Garrison Relay disabled 25159 | -7/Garrison | Triggered checkpoint 25711 | -7/Garrison | Entered Recycling 25712 | -7/Recycling | Identified exit to Factory 27122 | -7/Recycling | Scanned before Scraplab entrance 27138 | -7/Recycling | Entered Scraplab 27148 | -7/Recycling | Discovered new exit (range 3) 27175 | -7/Recycling | Entered Scraptown 27175 | -7/Scraptown | Accompanied by 8 allies 27175 | -7/Scraptown | System corruption cleaned by C-Scrubber 27394 | -7/Scraptown | Discovered exit to Factory (range 5) 27408 | -7/Scraptown | Build established: Commander-Mutant 27492 | -7/Scraptown | Visited The Evicted 27504 | -7/Scraptown | Visited Shadow of the Wyrm 27516 | -7/Scraptown | Visited CPS Storage 27543 | -7/Scraptown | Visited SPCMW 27618 | -7/Scraptown | Visited Assassins FH 27690 | -7/Scraptown | Heard Great Nut preacher, LISTEN AND RECITE! 27830 | -7/Scraptown | Visited Bundlers 27841 | -7/Scraptown | Visited Cyclists 28446 | -7/Scraptown | Build established: Commander-Executioner 28998 | -7/Scraptown | Visited UFD Registry 29345 | -7/Scraptown | Entered Factory 29345 | -5/Factory | Accompanied by 8 allies 29345 | -5/Factory | Evolved 4 slots: Utility x2, Weapon x2 29699 | -5/Factory | Identified exit to Upper Caves 29699 | -5/Factory | Identified exit to Extension 29794 | -5/Factory | Lost 4 allies 30042 | -5/Factory | Entered Upper Caves 30055 | -5/Upper Caves | Learned location of 1 exit from Factory 30058 | -5/Upper Caves | Build established: Scavenger-Executioner 30171 | -5/Upper Caves | Met a Warlord Commander 30172 | -5/Upper Caves | Learned location of Warlord (-5) 30173 | -5/Upper Caves | Warlord Commander delivered Encrypted Comm Array 30179 | -5/Upper Caves | Found Encrypted Comm Array 30348 | -5/Upper Caves | Found Alien Artifact 30428 | -5/Upper Caves | Attracted the attention of an 0b10 checkpoint 30857 | -5/Upper Caves | Discovered new exit (range 8) 31074 | -5/Upper Caves | Learned Factory garrison access intel 31273 | -5/Upper Caves | Entered another Upper Caves area 31368 | -5/Upper Caves | Discovered new exit (range 15) 31584 | -5/Upper Caves | Lost 3 parts (1n2w) 31860 | -5/Upper Caves | Identified exit to Warlord 32096 | -5/Upper Caves | Spotted B-75 Beast 32655 | -5/Upper Caves | Entered Warlord 32700 | -5/Warlord | System corruption cleaned by Quarantine Array 32915 | -5/Warlord | Found Prototype Special Weapon 32915 | -5/Warlord | Identified RU-N14's Throwing Claymores v3 33065 | -5/Warlord | Received a Watcher feed algorithm from an ecstatic Tinkerer 33173 | -5/Warlord | Learned location of Command (-1) 33176 | -5/Warlord | Learned 4 Command zone layouts 33183 | -5/Warlord | Learned Quarantine security intel 33183 | -5/Warlord | Learned Research repair station intel 33183 | -5/Warlord | Learned Research scanalyzer intel 33377 | -5/Warlord | Found Prototype Device 33377 | -5/Warlord | Identified Thermal Barrier 33462 | -5/Warlord | Met Warlord 33484 | -5/Warlord | Warlord's base attacked by MAIN.C 33524 | -5/Warlord | Found Prototype Hackware 33534 | -5/Warlord | Found Prototype Reactor 33721 | -5/Warlord | Found Prototype Energy Cannon 33721 | -5/Warlord | Identified Vortex Driver 33727 | -5/Warlord | Found Vortex Driver 33834 | -5/Warlord | Warlord forces counterattacked 33889 | -5/Warlord | Spotted Striker 33937 | -5/Warlord | Spotted B-86 Titan 33937 | -5/Warlord | Spotted B-75 Beast 33969 | -5/Warlord | Lost 13 allies 34042 | -5/Warlord | Spotted Executioner 34073 | -5/Warlord | Spotted Striker 34146 | -5/Warlord | Spotted Executioner 34159 | -5/Warlord | Warlord base infiltrated, sounded retreat 34190 | -5/Warlord | Lost 6 allies 34228 | -5/Warlord | Found Prototype Ballistic Cannon 34228 | -5/Warlord | Identified Hvy. Autocannon 34408 | -5/Warlord | Spotted Striker 34445 | -5/Warlord | Lost 6 allies 34456 | -5/Warlord | Discovered new exit (range 12) 34476 | -5/Warlord | Entered Proximity Caves 34476 | -4/Proximity Caves | Accompanied by 2 allies 34478 | -4/Proximity Caves | Spotter reported a threat 34479 | -4/Proximity Caves | Spotter reported a threat 34531 | -4/Proximity Caves | Spotter reported a threat 34825 | -4/Proximity Caves | Ambushed by research squad 34833 | -4/Proximity Caves | Spotter reported a threat 34930 | -4/Proximity Caves | Spotter reported a threat 34978 | -4/Proximity Caves | Spotter reported a threat 34983 | -4/Proximity Caves | Spotter reported a threat 35147 | -4/Proximity Caves | Learned location of 1 exit from Research 35153 | -4/Proximity Caves | Spotter reported a threat 35528 | -4/Proximity Caves | Discovered new exit (range 8) 35657 | -4/Proximity Caves | Entered Factory 35657 | -4/Factory | Accompanied by 2 allies 35657 | -4/Factory | Evolved 2 slots: Power x1, Propulsion x1 35658 | -4/Factory | Identified exit to Armory 35659 | -4/Factory | Identified exit to Upper Caves 35660 | -4/Factory | Loaded intel: 4 garrison access locations 35867 | -4/Factory | Identified exit to DSF 35868 | -4/Factory | Entered DSF 35868 | -4/DSF | Accompanied by 2 allies 35884 | -4/DSF | Additional patrols routed to DSF 36126 | -4/DSF | Sterilization system engaged 36134 | -4/DSF | Discovered new exit (range 16) 36146 | -4/DSF | Ambient heat levels rising (+10) 36161 | -4/DSF | Ambient heat levels rising (+10) 36176 | -4/DSF | Ambient heat levels rising (+10) 36180 | -4/DSF | Entered Research 36180 | -3/Research | Accompanied by 2 allies 36180 | -3/Research | Evolved 2 slots: Utility x2 36181 | -3/Research | Identified exit to Research 36182 | -3/Research | Loaded intel: 4 repair station locations 36183 | -3/Research | Loaded intel: 6 scanalyzer locations 36430 | -3/Research | First assault squad dispatched 36785 | -3/Research | Self-destructed Last Messages --------------- 36772_ U-05 Engineer lays Concrete. 36772_ Slug penetrates H-77 Assassin. 36774_ U-05 Engineer lays Concrete. 36774_ Penetrated by Slug. 36774_ Slug penetrates Wall. 36775_ Coil Gun broken. 36775_ Overheating: Short circuit. 36775_ U-05 Engineer lays Concrete. 36775_ R-10 Processor collects Unknown Processor. 36776_ U-05 Engineer lays Concrete. 36776_ Acquired 3 matter. 36777_ Penetrated by Slug. 36777_ Slug penetrates M-36 Artificer. 36777_ U-05 Engineer lays Concrete. 36780_ M-36 Artificer repairs R-10 Processor. 36780_ Penetrated by Slug. 36781_ U-05 Engineer lays Concrete. 36785_ Penetrated by Slug. 36785_ KE Penetrator destroyed. 36785_ U-05 Engineer builds a Wall. Map ----- +----------------------------------------------------+ | ?????????????????????????????????????????????????? | | ?????????????????????????????????????????????????? | | ??????????????????????????????????""""???????????? | | ??????????????????????????????????""R""??????????? | | ??????????????????????????????????""?""??????????? | | ?????????????????????????????????????????????????? | | ?????????????????????????????????????????????????? | | ?????????????????????????????????????????????????? | | ?????????????????????????????????????????????????? | | ?????????????????????????????????????????????????? | | ?????????????????????????????????????????????????? | | ?????????????????????????????????????????????????? | | ?????????????????????????????????????????????????? | | ?????????????????????????????????????????????????? | | ?????????????????????????????????????????????????? | | ?????????????????????????????????????????????????? | | ?????????????????????????????????????????????????? | | ?????????????????????????????????????????????????? | | ??????????????????????????????????????????H??????? | | ??????? ?????????????????????????????? ????????? | | ???????? ?????????????????????????? ????????? | | ?????????? #????????????????????? ???????? | | ?############;#;################## %???????? | | %=* | ??????? | | %%! % % % *=! % ??????? | | %[[! g ! @! ! ??????? | | """"" =h !%*m !! !! % wu ??????? | | """"" %[! R;;!#####+## # ??????? | | """"" =%% u ####??????????? ???????? | | #####?????????????????????? | | +?????????????????????? | | ##############?????????????????????? | | """"" #??########????????????????????????? | | """"" #? #????????????????????????? | | """"" #? #????????????????????????? | | ||*% # #????????????????????????? | | !=[! # ! #????????????????????????? | | [%%% / #????????????????????????? | | ! # #????????????????????????? | | # #????????????????????????? | | ######## #? #????????????????????????? | | ???????# #?#########????????????????????????? | | ???????# #+#??????????????????????????????????? | | ???????# # ??????????????????????????????????? | | ???????# # =??????????????????????????????????? | | ??????## # ??????????????????????????????????? | | ??????#" # ??????????????????????????????????? | | ??????## ###########??????????????????????????? | | ???????# #?! #??????????????????????????? | | ???????# #?! #??????????????????????????? | +----------------------------------------------------+ Best States ------------- Heat Dissipation 108 Energy Generation 41 Energy Capacity 325 Matter Stores 300 Matter Capacity 300 Sight Range 22 Terrain Scan Density 10 Armor Coverage 150 Resistance: TH 50 Weapon Cycling 20 Evasion (%) 44 Targeting Accuracy 8 Target Analysis 6 Core Analysis 6 Recoil Reduction 6 Matter Filtering 30 Salvage Targeting 4 Offensive Hacking 10 Defensive Hacking 10 Authchip Count 1 Item Schematics ----------------- Assault Rifle | -10/Materials | Hacked Com. Wheel | -9/Materials | Scanalyzed Terrain Scan Processor | -9/Materials | Extracted ECM Suite | -9/Materials | Extracted Seismic Detector | -9/Materials | Extracted EM Shotgun | -9/Materials | Extracted Sml. Storage Unit | -9/Materials | Extracted Hcp. Matter Pod | -9/Materials | Extracted Visual Processing Unit | -9/Materials | Extracted Aluminum Leg | -9/Materials | Extracted Beam Rifle | -9/Materials | Extracted EMP Blaster | -9/Materials | Extracted Imp. Hover Unit | -9/Materials | Extracted Mining Laser | -9/Materials | Extracted Shotgun | -9/Materials | Extracted Recoil Stabilizer | -8/Materials | Scanalyzed Mak. Salvage Targeting Computer | -8/Materials | Scanalyzed Powered Armor | -8/Materials | Scanalyzed Lrg. Storage Unit | -8/Materials | Hacked Hpw. Shotgun | -8/Materials | Scanalyzed Wheel | -8/Materials | Scanalyzed Robot Schematics ------------------ M-13 Machinist | -9/Materials | Hacked P-70 Sage | -5/Factory | Hacked Fabricated ------------ Nothing Repaired ---------- Lgt. Cannon | 30% | -10/Materials Wheel | 17% | -9/Materials Gauss Rifle | 15% | -8/Materials Mak. Salvage Targeting Computer | 99% | -8/Materials | Broken Hvy. Assault Rifle | 13% | -8/Materials Alien Tech Used ----------------- None Achievements -------------- None Challenges ------------ None Game ------ Seed NeutrinoDeliveryFacilitator Manual? 0 Play Time 04:20:34 Cumulative 1111.4 hours Start 2025.07.23 @ 21:25:44 End 2025.07.24 @ 21:17:36 Sessions 7 Manual Loads 0 Difficulty Rogue Special Mode None Game No. 553 Rogue 553 Adventurer 0 Explorer 0 Win Type - Total 23 Types 10/4/3/0/1/1/2/2/0/0 Lore% 90 Gallery% 89 Achievement% 83 Wizard Run 0 Options --------- Layout 0 ASCII 0 Keyboard 0 Movement Numpad Keybinds 0 Fullscreen 2 Font 24/Smallcaps Map View 76x50 Zoom Use 0% Tactical HUD 1 Map Filters NONE Filters SHIFT_HUE(315) Steam 1 RUN: 9a2d4567-0388-467d-bc0d-23e6c71f90e4